Workbook

Sheet Table 1
B1: Transferred to Rubicon | C1: 375600 | F1: YESSIRSKI LLC | G1: =IF(F1="","","*"&F1&"*") -> *YESSIRSKI LLC* | H1: =IF(F1="","",SUMIF(Table1[Description],G1,Table1[Amount])) -> 173970
B2: Transferred in from Rubicon | C2: 138203.5 | F2: GOOGLE*ADS | G2: =IF(F2="","","*"&F2&"*") -> *GOOGLE*ADS* | H2: =IF(F2="","",SUMIF(Table1[Description],G2,Table1[Amount])) -> -4004.64 | N2: Google Ads | Q2: 4004.64
F3: CONTACTCONSUMERS.COM | G3: *CONTACTCONSUMERS.COM* | H3: =IF(F3="","",SUMIF(Table1[Description],G3,Table1[Amount])) -> -200 | O3: ContactConsumers | Q3: 200
B4: Transferred to stock account (BRK 6035) | C4: -175000 | F4: Tallin | G4: *Tallin* | H4: =IF(F4="","",SUMIF(Table1[Description],G4,Table1[Amount])) -> -1152.77 | O4: Adobe | Q4: 784.62
B5: Transferred from BRK to bank | C5: 347629.49 | F5: ClickFUnnels | G5: *ClickFUnnels* | H5: =IF(F5="","",SUMIF(Table1[Description],G5,Table1[Amount])) -> -7188 | O5: Nord VPN | Q5: 156.43
B6: Transferred from bank to Rubicon | C6: -375600 | F6: Adobe | G6: *Adobe* | H6: =IF(F6="","",SUMIF(Table1[Description],G6,Table1[Amount])) -> -784.62 | O6: Godaddy | Q6: 223.12
B7: Transferred from Rubicon to bank | C7: 401275.74 | F7: Uber | G7: *Uber* | H7: =IF(F7="","",SUMIF(Table1[Description],G7,Table1[Amount])) -> -3329.94 | O7: ClickFunnels | Q7: 7188
B8: Transfer from YESSIRSKI to bank | C8: 173970 | F8: Lyft | G8: *Lyft* | H8: =IF(F8="","",SUMIF(Table1[Description],G8,Table1[Amount])) -> -170.53 | O8: Ringba.com | Q8: 6576.46
B9: Transfer from Betterment SEC to bank account | C9: 59107.07 | F9: NordVPN | G9: *NordVPN* | H9: =IF(F9="","",SUMIF(Table1[Description],G9,Table1[Amount])) -> -156.43 | O9: IncFile | Q9: 1385
B10: BILTPYMTS (Rent) | C10: -15814.34 | F10: London | G10: *London* | H10: =IF(F10="","",SUMIF(Table1[Description],G10,Table1[Amount])) -> -2839.35 | Q10: =SUM(Q2:Q9) -> 20518.27 | R10: =Q10/12 -> 1709.855833
F11: BEFUNKY.COM | G11: *BEFUNKY.COM* | H11: =IF(F11="","",SUMIF(Table1[Description],G11,Table1[Amount])) -> -161.82
F12: usatax | G12: *usatax* | H12: =IF(F12="","",SUMIF(Table1[Description],G12,Table1[Amount])) -> -187739.2
F13: godaddy | G13: *godaddy* | H13: =IF(F13="","",SUMIF(Table1[Description],G13,Table1[Amount])) -> -223.12
F14: BRK 6035 | G14: *BRK 6035* | H14: =IF(F14="","",SUMIF(Table1[Description],G14,Table1[Amount])) -> 172629.49
F15: RINGBA.COM | G15: *RINGBA.COM* | H15: =IF(F15="","",SUMIF(Table1[Description],G15,Table1[Amount])) -> -6576.46
B16: Transfers In | C16: =SUM(C5,C7,C8,C9) -> 981982.3 | F16: MOBILE PUSHERS LLC | G16: *MOBILE PUSHERS LLC* | H16: =IF(F16="","",SUMIF(Table1[Description],G16,Table1[Amount])) -> 1000
B17: Transfers Out | C17: =SUM(C4,C6,C10) -> -566414.34 | F17: CRD 9433 | G17: *CRD 9433* | H17: =IF(F17="","",SUMIF(Table1[Description],G17,Table1[Amount])) -> -29142
F18: Everi | G18: *Everi* | H18: =IF(F18="","",SUMIF(Table1[Description],G18,Table1[Amount])) -> -13633.55
F19: INCFILE | G19: *INCFILE* | H19: =IF(F19="","",SUMIF(Table1[Description],G19,Table1[Amount])) -> -1385
H20: =IF(F20="","",SUMIF(Table1[Description],G20,Table1[Amount])) -> 
H21: =IF(F21="","",SUMIF(Table1[Description],G21,Table1[Amount])) -> 
H22: =IF(F22="","",SUMIF(Table1[Description],G22,Table1[Amount])) -> 
A23: Date | B23: Description | C23: Amount | H23: =IF(F23="","",SUMIF(Table1[Description],G23,Table1[Amount])) -> 
B24: 24431063024083753308589
B25: 24431063123083351394809
B26: 24431063125083752651516
B27: 24431063144083740176094
B28: 24431063229083720136355
B29: 24431063230083306839213
B30: 24431063231083713771206
B31: 24431063236083723189741
B32: 24431063243083342239647
B33: 24431063248083747321409
B34: 24431063250083752369967
B35: 24492163230000010974031
A36: 2023-03-03 | B36: Acorns Invest DES:Transfer ID:D0ZLS51 INDN:Michael Walker CO ID:9000142693 WEB | C36: -5
A37: 2023-03-03 | B37: CHECKCARD 0302 AMZN MKTP US*H57E13MF0 AMZN.COM/BILLWA 24431063062083318737937
A38: 2023-03-03 | B38: CHECKCARD 0302 OF London 74592723061177489417426 INTERNATIONAL TRANSACTION FEE
A39: 02/16/23 CHECKCARD 0216 MULTILOGIN CHARGE TALLINN 74609053047000002051872 INTERNATIONAL TRANSACTION FEE 02/21/23 | B39: PURCHASE 0221 a.NordVPN London 74987503052000009427644 RECURRING INTERNATIONAL TRANSACTION FEE
A40: 2023-03-03 | B40: VENMO DES:PAYMENT ID:1025583447662 INDN:MICHAEL WALKER CO ID:3264681992 WEB
A41: 2023-02-21 | B41: VENMO DES:PAYMENT ID:1025369040417 INDN:MICHAEL WALKER CO ID:3264681992 WEB
A42: 2023-01-17 | B42: CHECKCARD 0114 OF London 74592723014165436656624 INTERNATIONAL TRANSACTION FEE
A43: 02/21/23 02/21/23 Preferred Rewards-ATM Wthdrwl Fee Waiver of $2.50 -0.00 02/21/23 Preferred Rewards-ATM Wthdrwl Fee Waiver of $2.50 -0.00 02/21/23 Preferred Rewards-ATM Wthdrwl Fee Waiver of $2.50 -0.00 02/21/23 Preferred Rewards-ATM Wthdrwl Fee Waiver of $2.50 -0.00 02/21/23 Preferred Rewards-ATM Wthdrwl Fee Waiver of $2.50 -0.00 | B43: Preferred Rewards-ATM Bal Inq Fee Waiver of $2.50 -0.00
A44: 2023-05-22 | B44: 00000000009469 05/19 #000281897 WITHDRWL Cash on the Go 1 Tampa FL | C44: -409
A45: 2023-05-22 | B45: 00000000009469 05/19 #000282671 WITHDRWL Cash on the Go 1 Tampa FL | C45: -409
A46: 2023-05-22 | B46: 00000000009469 05/19 #000283195 WITHDRWL Cash on the Go 1 Tampa | C46: -209
A47: 2023-05-15 | B47: 00000000021567 05/14 #000530489 WITHDRWL Cactus Marketplac Las Vegas NV | C47: -202
A48: 2023-05-15 | B48: 00000000021567 05/14 #000530560 WITHDRWL Cactus Marketplac Las Vegas NV | C48: -202
A49: 2023-11-24 | B49: 00000000021567 11/23 #000899554 WITHDRWL Cactus Marketplac Las Vegas NV | C49: -202
A50: 2024-01-02 | B50: 00000000025731 12/31 #000867408 WITHDRWL Russell Road Food Las Vegas NV | C50: -600
A51: 2022-12-12 | B51: 74609052349000002197185 INTERNATIONAL TRANSACTION FEE CHECKCARD 1207 GOOGLE*ADS1105005050 SUPPORT.GOOGLCA 24803942342910002252046 | C51: -0.6
A52: 2022-12-12 | B52: 74609052350000004948128 INTERNATIONAL TRANSACTION FEE CHECKCARD 1208 OnlyFans Hertfordshire 24021212342081214587860 RECURRING | C52: -0.3
B53: 74609053043000002946505 INTERNATIONAL TRANSACTION FEE
B54: 74609053106000003722636 INTERNATIONAL TRANSACTION FEE
A55: 2023-02-27 | B55: Acorns Invest | C55: -46.7
A56: 2023-02-27 | B56: Acorns Invest | C56: -30.2
A57: 2023-01-23 | B57: Acorns Invest | C57: -24.1
A58: 2023-01-17 | B58: Acorns Invest | C58: -22.9
A59: 2023-01-17 | B59: Acorns Invest | C59: -20
A60: 2023-05-22 | B60: Acorns Invest | C60: -18.4
A61: 2023-02-27 | B61: Acorns Invest | C61: -14.8
A62: 2023-01-23 | B62: Acorns Invest | C62: -11.3
A63: 2023-05-22 | B63: Acorns Invest | C63: -10.2
A64: 2023-01-17 | B64: Acorns Invest | C64: -10
A65: 2023-01-06 | B65: Acorns Invest DES:Transfer ID:05QQP41 INDN:Michael Walker CO ID:9000142693 WEB | C65: -10
A66: 2023-06-05 | B66: Acorns Invest DES:Transfer ID:0R19M71 INDN:Michael Walker CO ID:9000142693 WEB | C66: -10.1
A67: 2023-05-26 | B67: Acorns Invest DES:Transfer ID:0RXKF71 INDN:Michael Walker CO ID:9000142693 WEB | C67: -38.3
A68: 2023-06-01 | B68: Acorns Invest DES:Transfer ID:0TLCJ71 INDN:Michael Walker CO ID:9000142693 WEB | C68: -9.7
A69: 2022-12-23 | B69: Acorns Invest DES:Transfer ID:112PF41 INDN:Michael Walker CO ID:9000142693 WEB | C69: -14.5
A70: 2023-10-12 | B70: Acorns Invest DES:Transfer ID:1W2Y3B1 INDN:Michael Walker | C70: 14434.75
A71: 2023-12-18 | B71: Acorns Invest DES:Transfer ID:20G8DC1 INDN:Michael Walker CO ID:9000142693 WEB | C71: -10
A72: 2023-08-02 | B72: Acorns Invest DES:Transfer ID:2503R81 INDN:Michael Walker CO ID:9000142693 WEB | C72: -19.8
A73: 2023-05-25 | B73: Acorns Invest DES:Transfer ID:263ND71 INDN:Michael Walker CO ID:9000142693 WEB | C73: -53.1
A74: 2023-06-12 | B74: Acorns Invest DES:Transfer ID:2HXLQ71 INDN:Michael Walker CO ID:9000142693 WEB | C74: -16.8
A75: 2023-07-26 | B75: Acorns Invest DES:Transfer ID:2W6TL81 INDN:Michael Walker CO ID:9000142693 WEB | C75: -29.8
A76: 2023-08-09 | B76: Acorns Invest DES:Transfer ID:2ZPXW81 INDN:Michael Walker CO ID:9000142693 WEB | C76: -20.9
A77: 2023-09-26 | B77: Acorns Invest DES:Transfer ID:316GT91 INDN:Michael Walker | C77: -7.9
A78: 2023-05-03 | B78: Acorns Invest DES:Transfer ID:3CNNZ61 INDN:Michael Walker CO ID:9000142693 WEB | C78: -38.2
A79: 2023-05-15 | B79: Acorns Invest DES:Transfer ID:3FC7671 INDN:Michael Walker CO ID:9000142693 WEB | C79: -43.8
A80: 2023-04-03 | B80: Acorns Invest DES:Transfer ID:3VRCC61 INDN:Michael Walker CO ID:9000142693 WEB | C80: -20
A81: 2023-11-20 | B81: Acorns Invest DES:Transfer ID:3XJHVB1 INDN:Michael Walker CO ID:9000142693 WEB | C81: -6.7
A82: 2023-05-30 | B82: Acorns Invest DES:Transfer ID:3YYDG71 INDN:Michael Walker CO ID:9000142693 WEB | C82: -24.4
A83: 2023-11-24 | B83: Acorns Invest DES:Transfer ID:46VVXB1 INDN:Michael Walker CO ID:9000142693 WEB | C83: -17.5
A84: 2023-03-20 | B84: Acorns Invest DES:Transfer ID:48XJ261 INDN:Michael Walker CO ID:9000142693 WEB | C84: -24.7
A85: 2023-04-13 | B85: Acorns Invest DES:Transfer ID:4KCGL61 INDN:Michael Walker CO ID:9000142693 WEB | C85: -12.1
A86: 2023-06-21 | B86: Acorns Invest DES:Transfer ID:5BYNW71 INDN:Michael Walker CO ID:9000142693 WEB | C86: -30.2
A87: 2023-11-08 | B87: Acorns Invest DES:Transfer ID:5GQPMB1 INDN:Michael Walker CO ID:9000142693 WEB | C87: -10
A88: 2022-12-16 | B88: Acorns Invest DES:Transfer ID:5QGF941 INDN:Michael Walker CO ID:9000142693 WEB | C88: -10
A89: 2023-05-22 | B89: Acorns Invest DES:Transfer ID:5R3TB71 INDN:Michael Walker CO ID:9000142693 WEB | C89: -31.9
A90: 2023-06-05 | B90: Acorns Invest DES:Transfer ID:5SMWL71 INDN:Michael Walker CO ID:9000142693 WEB | C90: -10
A91: 2023-05-30 | B91: Acorns Invest DES:Transfer ID:5Z5SF71 INDN:Michael Walker CO ID:9000142693 WEB | C91: -35.7
A92: 2023-06-26 | B92: Acorns Invest DES:Transfer ID:6D0Q081 INDN:Michael Walker CO ID:9000142693 WEB | C92: -21.5
A93: 2023-12-29 | B93: Acorns Invest DES:Transfer ID:6K47MC1 INDN:Michael Walker CO ID:9000142693 WEB | C93: -18.6
A94: 2023-06-30 | B94: Acorns Invest DES:Transfer ID:6K85381 INDN:Michael Walker CO ID:9000142693 WEB | C94: -53.5
A95: 2022-12-12 | B95: Acorns Invest DES:Transfer ID:73TY641 INDN:Michael Walker CO ID:9000142693 WEB | C95: -30
A96: 2023-07-17 | B96: Acorns Invest DES:Transfer ID:7FNZD81 INDN:Michael Walker CO ID:9000142693 WEB | C96: -20
A97: 2023-06-29 | B97: Acorns Invest DES:Transfer ID:7K1L281 INDN:Michael Walker CO ID:9000142693 WEB | C97: -65.5
A98: 2023-12-22 | B98: Acorns Invest DES:Transfer ID:7ZF8HC1 INDN:Michael Walker CO ID:9000142693 WEB | C98: -5
A99: 2023-05-15 | B99: Acorns Invest DES:Transfer ID:84W9571 INDN:Michael Walker CO ID:9000142693 WEB | C99: -30
A100: 2023-07-28 | B100: Acorns Invest DES:Transfer ID:85H4N81 INDN:Michael Walker CO ID:9000142693 WEB | C100: -7.8
A101: 2023-11-16 | B101: Acorns Invest DES:Transfer ID:8C3QSB1 INDN:Michael Walker CO ID:9000142693 WEB | C101: -14.2
A102: 2023-04-05 | B102: Acorns Invest DES:Transfer ID:8LD6F61 INDN:Michael Walker CO ID:9000142693 WEB | C102: -32.2
A103: 2023-06-16 | B103: Acorns Invest DES:Transfer ID:8LLXT71 INDN:Michael Walker CO ID:9000142693 WEB | C103: -32.7
A104: 2023-03-17 | B104: Acorns Invest DES:Transfer ID:8LQM161 INDN:Michael Walker CO ID:9000142693 WEB | C104: -33.1
A105: 2023-11-20 | B105: Acorns Invest DES:Transfer ID:8M84VB1 INDN:Michael Walker CO ID:9000142693 WEB | C105: -31
A106: 2023-01-03 | B106: Acorns Invest DES:Transfer ID:8S7XL41 INDN:Michael Walker CO ID:9000142693 WEB | C106: -32.7
A107: 2023-05-01 | B107: Acorns Invest DES:Transfer ID:8S8FX61 INDN:Michael Walker CO ID:9000142693 WEB | C107: -68
A108: 2023-06-16 | B108: Acorns Invest DES:Transfer ID:9C5FV71 INDN:Michael Walker CO ID:9000142693 WEB | C108: -17.3
A109: 2023-04-10 | B109: Acorns Invest DES:Transfer ID:9ZS6J61 INDN:Michael Walker CO ID:9000142693 WEB | C109: -7
A110: 2023-04-24 | B110: Acorns Invest DES:Transfer ID:B8J8S61 INDN:Michael Walker CO ID:9000142693 WEB | C110: -13.9
A111: 2023-04-24 | B111: Acorns Invest DES:Transfer ID:BB7PS61 INDN:Michael Walker CO ID:9000142693 WEB | C111: -20.7
A112: 2023-12-14 | B112: Acorns Invest DES:Transfer ID:BCVY9C1 INDN:Michael Walker CO ID:9000142693 WEB | C112: -9.5
A113: 2023-05-19 | B113: Acorns Invest DES:Transfer ID:BDFJ971 INDN:Michael Walker CO ID:9000142693 WEB | C113: -45.8
A114: 2023-07-03 | B114: Acorns Invest DES:Transfer ID:C1J3581 INDN:Michael Walker CO ID:9000142693 WEB | C114: -12.5
A115: 2022-12-22 | B115: Acorns Invest DES:Transfer ID:C4H0F41 INDN:Michael Walker CO ID:9000142693 WEB | C115: -32.8
A116: 2023-11-28 | B116: Acorns Invest DES:Transfer ID:CNVK0C1 INDN:Michael Walker CO ID:9000142693 WEB | C116: -24.1
A117: 2023-04-17 | B117: Acorns Invest DES:Transfer ID:CV7YM61 INDN:Michael Walker CO ID:9000142693 WEB | C117: -21.3
A118: 2023-09-12 | B118: Acorns Invest DES:Transfer ID:D44KJ91 INDN:Michael Walker | C118: -10
A119: 2023-11-21 | B119: Acorns Invest DES:Transfer ID:D92KWB1 INDN:Michael Walker CO ID:9000142693 WEB | C119: -9.7
A120: 2023-07-03 | B120: Acorns Invest DES:Transfer ID:DFVQ381 INDN:Michael Walker CO ID:9000142693 WEB | C120: -25.1
A121: 2023-06-02 | B121: Acorns Invest DES:Transfer ID:DY60L71 INDN:Michael Walker CO ID:9000142693 WEB | C121: -19.5
A122: 2023-01-03 | B122: Acorns Invest DES:Transfer ID:F1ZCM41 INDN:Michael Walker CO ID:9000142693 WEB | C122: -32.8
A123: 2023-06-01 | B123: Acorns Invest DES:Transfer ID:FQ56K71 INDN:Michael Walker CO ID:9000142693 WEB | C123: -101.5
A124: 2024-01-08 | B124: Acorns Invest DES:Transfer ID:FQPGRC1 INDN:Michael Walker CO ID:9000142693 WEB | C124: -22.3
A125: 2023-12-27 | B125: Acorns Invest DES:Transfer ID:G57CKC1 INDN:Michael Walker CO ID:9000142693 WEB | C125: -57.7
A126: 2022-12-08 | B126: Acorns Invest DES:Transfer ID:G5N3541 INDN:Michael Walker CO ID:9000142693 WEB | C126: -30.2
A127: 2023-12-06 | B127: Acorns Invest DES:Transfer ID:GK725C1 INDN:Michael Walker CO ID:9000142693 WEB | C127: -13.6
A128: 2023-12-01 | B128: Acorns Invest DES:Transfer ID:H72V1C1 INDN:Michael Walker CO ID:9000142693 WEB | C128: -6.3
A129: 2023-03-13 | B129: Acorns Invest DES:Transfer ID:HN01Z51 INDN:Michael Walker CO ID:9000142693 WEB | C129: -18.7
A130: 2023-05-01 | B130: Acorns Invest DES:Transfer ID:HVYSX61 INDN:Michael Walker CO ID:9000142693 WEB | C130: -16.9
A131: 2023-08-03 | B131: Acorns Invest DES:Transfer ID:HZ70S81 INDN:Michael Walker CO ID:9000142693 WEB | C131: -15.1
A132: 2023-12-28 | B132: Acorns Invest DES:Transfer ID:J7DKLC1 INDN:Michael Walker CO ID:9000142693 WEB | C132: -14.9
A133: 2023-03-23 | B133: Acorns Invest DES:Transfer ID:J9B5561 INDN:Michael Walker CO ID:9000142693 WEB | C133: -49.5
A134: 2023-04-12 | B134: Acorns Invest DES:Transfer ID:JJXSK61 INDN:Michael Walker CO ID:9000142693 WEB | C134: -18.8
A135: 2023-06-15 | B135: Acorns Invest DES:Transfer ID:JNJST71 INDN:Michael Walker CO ID:9000142693 WEB | C135: -5.5
A136: 2023-03-30 | B136: Acorns Invest DES:Transfer ID:K9RB961 INDN:Michael Walker CO ID:9000142693 WEB | C136: -38.7
A137: 2023-05-18 | B137: Acorns Invest DES:Transfer ID:KK5Y871 INDN:Michael Walker CO ID:9000142693 WEB | C137: -20.1
A138: 2023-04-28 | B138: Acorns Invest DES:Transfer ID:KKMHW61 INDN:Michael Walker CO ID:9000142693 WEB | C138: -16.6
A139: 2023-11-27 | B139: Acorns Invest DES:Transfer ID:KV1JZB1 INDN:Michael Walker CO ID:9000142693 WEB | C139: -12.9
A140: 2023-10-30 | B140: Acorns Invest DES:Transfer ID:KX7ZDB1 INDN:Michael Walker CO ID:9000142693 WEB | C140: -12.5
A141: 2023-10-06 | B141: Acorns Invest DES:Transfer ID:LF9R0B1 INDN:Michael Walker CO ID:9000142693 WEB | C141: -10
A142: 2024-01-04 | B142: Acorns Invest DES:Transfer ID:LQY0QC1 INDN:Michael Walker | C142: -44.9
A143: 2022-12-12 | B143: Acorns Invest DES:Transfer ID:LR7K641 INDN:Michael Walker CO ID:9000142693 WEB | C143: -86.1
A144: 2023-04-12 | B144: Acorns Invest DES:Transfer ID:LVPSK61 INDN:Michael Walker CO ID:9000142693 WEB | C144: -50.8
A145: 2023-11-10 | B145: Acorns Invest DES:Transfer ID:M303PB1 INDN:Michael Walker CO ID:9000142693 WEB | C145: -7.7
A146: 2023-11-14 | B146: Acorns Invest DES:Transfer ID:M818RB1 INDN:Michael Walker CO ID:9000142693 WEB | C146: -36.8
A147: 2023-06-07 | B147: Acorns Invest DES:Transfer ID:MG2KN71 INDN:Michael Walker CO ID:9000142693 WEB | C147: -31.6
A148: 2022-12-27 | B148: Acorns Invest DES:Transfer ID:N3R4H41 INDN:Michael Walker CO ID:9000142693 WEB | C148: -42.3
A149: 2023-06-26 | B149: Acorns Invest DES:Transfer ID:N49C081 INDN:Michael Walker CO ID:9000142693 WEB | C149: -41.7
A150: 2023-03-16 | B150: Acorns Invest DES:Transfer ID:N8PW061 INDN:Michael Walker CO ID:9000142693 WEB | C150: -77.3
A151: 2022-12-15 | B151: Acorns Invest DES:Transfer ID:NPZV841 INDN:Michael Walker CO ID:9000142693 WEB | C151: -10
A152: 2023-07-06 | B152: Acorns Invest DES:Transfer ID:NVJW681 INDN:Michael Walker CO ID:9000142693 WEB | C152: -53
A153: 2022-12-19 | B153: Acorns Invest DES:Transfer ID:PGY2B41 INDN:Michael Walker CO ID:9000142693 WEB | C153: -11.1
A154: 2023-09-18 | B154: Acorns Invest DES:Transfer ID:Q8L6M91 INDN:Michael Walker CO ID:9000142693 WEB | C154: -10
A155: 2023-03-31 | B155: Acorns Invest DES:Transfer ID:Q8Y9B61 INDN:Michael Walker | C155: -19.1
A156: 2022-12-29 | B156: Acorns Invest DES:Transfer ID:QMNTJ41 INDN:Michael Walker CO ID:9000142693 WEB | C156: -7.3
A157: 2024-01-03 | B157: Acorns Invest DES:Transfer ID:QW4NPC1 INDN:Michael Walker | C157: -35
A158: 2023-11-29 | B158: Acorns Invest DES:Transfer ID:RG271C1 INDN:Michael Walker CO ID:9000142693 WEB | C158: -35
A159: 2023-07-14 | B159: Acorns Invest DES:Transfer ID:RGW2D81 INDN:Michael Walker CO ID:9000142693 WEB | C159: -10
A160: 2023-12-19 | B160: Acorns Invest DES:Transfer ID:RMLCFC1 INDN:Michael Walker CO ID:9000142693 WEB | C160: -10 | G160: =B160&" "&#REF! -> 
A161: 2023-04-14 | B161: Acorns Invest DES:Transfer ID:RTN1M61 INDN:Michael Walker CO ID:9000142693 WEB | C161: -29.6
A162: 2023-11-22 | B162: Acorns Invest DES:Transfer ID:RTX5XB1 INDN:Michael Walker CO ID:9000142693 WEB | C162: -56.2
A163: 2023-06-14 | B163: Acorns Invest DES:Transfer ID:S1J3T71 INDN:Michael Walker CO ID:9000142693 WEB | C163: -59.2
A164: 2023-10-19 | B164: Acorns Invest DES:Transfer ID:S34R7B1 INDN:Michael Walker CO ID:9000142693 WEB | C164: -28 | G164: =B171&" "&B58 -> Acorns Invest DES:Transfer ID:V7H9W71 INDN:Michael Walker CO ID:9000142693 WEB Acorns Invest
A165: 2023-10-31 | B165: Acorns Invest DES:Transfer ID:SCZBGB1 INDN:Michael Walker CO ID:9000142693 WEB | C165: -10
A166: 2023-07-31 | B166: Acorns Invest DES:Transfer ID:SPBLP81 INDN:Michael Walker CO ID:9000142693 WEB | C166: -18.1
A167: 2023-06-12 | B167: Acorns Invest DES:Transfer ID:T9FBR71 INDN:Michael Walker CO ID:9000142693 WEB | C167: -10.1
A168: 2022-12-09 | B168: Acorns Invest DES:Transfer ID:TMTP541 INDN:Michael Walker CO ID:9000142693 WEB | C168: -10.2
A169: 2024-01-08 | B169: Acorns Invest DES:Transfer ID:V3LBSC1 INDN:Michael Walker CO ID:9000142693 WEB | C169: -10
A170: 2023-10-03 | B170: Acorns Invest DES:Transfer ID:V4FTY91 INDN:Michael Walker CO ID:9000142693 WEB | C170: -10
A171: 2023-06-20 | B171: Acorns Invest DES:Transfer ID:V7H9W71 INDN:Michael Walker CO ID:9000142693 WEB | C171: -21.4
A172: 2023-09-22 | B172: Acorns Invest DES:Transfer ID:V8Q5R91 INDN:Michael Walker CO ID:9000142693 WEB | C172: -10
A173: 2023-03-24 | B173: Acorns Invest DES:Transfer ID:VHRS561 INDN:Michael Walker CO ID:9000142693 WEB | C173: -15.4
A174: 2022-12-27 | B174: Acorns Invest DES:Transfer ID:VKPLH41 INDN:Michael Walker CO ID:9000142693 WEB | C174: -18.8
A175: 2022-12-15 | B175: Acorns Invest DES:Transfer ID:VN2T841 INDN:Michael Walker CO ID:9000142693 WEB | C175: -62.7
A176: 2023-04-21 | B176: Acorns Invest DES:Transfer ID:VNWBR61 INDN:Michael Walker CO ID:9000142693 WEB | C176: -13.6
A177: 2023-12-15 | B177: Acorns Invest DES:Transfer ID:VRPWBC1 INDN:Michael Walker CO ID:9000142693 WEB | C177: -10
A178: 2023-08-08 | B178: Acorns Invest DES:Transfer ID:VXB1W81 INDN:Michael Walker CO ID:9000142693 WEB | C178: -10
A179: 2023-03-27 | B179: Acorns Invest DES:Transfer ID:W5BJ661 INDN:Michael Walker CO ID:9000142693 WEB | C179: -64.6
A180: 2023-07-03 | B180: Acorns Invest DES:Transfer ID:WBXZ481 INDN:Michael Walker CO ID:9000142693 WEB | C180: -40.2
A181: 2023-11-13 | B181: Acorns Invest DES:Transfer ID:WD3BQB1 INDN:Michael Walker CO ID:9000142693 WEB | C181: -9.8
A182: 2023-04-07 | B182: Acorns Invest DES:Transfer ID:WHLSG61 INDN:Michael Walker CO ID:9000142693 WEB | C182: -19.5
A183: 2023-10-18 | B183: Acorns Invest DES:Transfer ID:WJP07B1 INDN:Michael Walker CO ID:9000142693 WEB | C183: -10
A184: 2023-07-31 | B184: Acorns Invest DES:Transfer ID:WK5YP81 INDN:Michael Walker CO ID:9000142693 WEB | C184: -36.9
A185: 2023-05-15 | B185: Acorns Invest DES:Transfer ID:WN5K671 INDN:Michael Walker CO ID:9000142693 WEB | C185: -20.9
A186: 2023-09-28 | B186: Acorns Invest DES:Transfer ID:WQMPV91 INDN:Michael Walker CO ID:9000142693 WEB | C186: -10
A187: 2023-03-31 | B187: Acorns Invest DES:Transfer ID:X686B61 INDN:Michael Walker | C187: -6.3
A188: 2023-05-30 | B188: Acorns Invest DES:Transfer ID:XDMTG71 INDN:Michael Walker CO ID:9000142693 WEB | C188: -29.3
A189: 2023-11-15 | B189: Acorns Invest DES:Transfer ID:XJZWRB1 INDN:Michael Walker CO ID:9000142693 WEB | C189: -14.1
A190: 2022-12-19 | B190: Acorns Invest DES:Transfer ID:XKS2C41 INDN:Michael Walker CO ID:9000142693 WEB | C190: -30.6
A191: 2023-04-26 | B191: Acorns Invest DES:Transfer ID:XLD7V61 INDN:Michael Walker CO ID:9000142693 WEB | C191: -91.7
A192: 2023-01-06 | B192: Acorns Invest DES:Transfer ID:XQ95Q41 INDN:Michael Walker CO ID:9000142693 WEB | C192: -57
A193: 2023-04-19 | B193: Acorns Invest DES:Transfer ID:YCYXP61 INDN:Michael Walker CO ID:9000142693 WEB | C193: -58.4
A194: 2023-10-23 | B194: Acorns Invest DES:Transfer ID:YSFX8B1 INDN:Michael Walker | C194: -31
A195: 2023-03-20 | B195: Acorns Invest DES:Transfer ID:YXT7361 INDN:Michael Walker CO ID:9000142693 WEB | C195: -20.1
A196: 2023-06-22 | B196: Acorns Invest DES:Transfer ID:Z1ZTY71 INDN:Michael Walker CO ID:9000142693 WEB | C196: -113.2
A197: 2023-05-17 | B197: Acorns Invest DES:Transfer ID:Z748871 INDN:Michael Walker CO ID:9000142693 WEB | C197: -85
A198: 2023-06-23 | B198: Acorns Invest DES:Transfer ID:Z8YHZ71 INDN:Michael Walker CO ID:9000142693 WEB | C198: -18.6
A199: 2023-09-11 | B199: Acorns Invest DES:Transfer ID:ZC54H91 INDN:Michael Walker | C199: -10
A200: 2023-03-29 | B200: Acorns Invest DES:Transfer ID:ZNXM861 INDN:Michael Walker CO ID:9000142693 WEB | C200: -10.5
... 1608 more rows

Sheet Sheet1
